fUST/lending_fUST_20250213
["ID","MTS","AMOUNT","RATE_DAILY","PERIOD"]
[352861016,1739379034228,-500.0,0.00011095,2]
[352861018,1739379034238,-500.0,0.00011095,2]
[352861020,1739379034249,-500.0,0.00011095,2]
[352861022,1739379034258,-500.0,0.00011095,2]
[352861024,1739379034268,-500.0,0.00011095,2]
[352861026,1739379034277,-500.0,0.00011095,2]
[352861028,1739379034287,-500.0,0.00011095,2]
[352861030,1739379034298,-500.0,0.00011095,2]
[352861032,1739379034308,-500.0,0.00011095,2]
[352861034,1739379034318,-500.0,0.00011095,2]
[352861036,1739379034329,-500.0,0.00011095,2]
[352861038,1739379034339,-500.0,0.00011095,2]
[352861040,1739379034354,-500.0,0.00011095,2]
[352861042,1739379034364,-500.0,0.00011095,2]
[352861044,1739379034374,-511.79970277,0.00011095,2]
[352861046,1739379034384,-500.0,0.00011095,2]
[352861047,1739379034395,-500.0,0.00011095,2]
[352861049,1739379034406,-500.0,0.00011095,2]
[352861051,1739379034416,-500.0,0.00011095,2]
[352861053,1739379034427,-500.0,0.00011095,2]
[352861055,1739379034437,-500.0,0.00011095,2]
[352861057,1739379034447,-500.0,0.00011095,2]
[352861059,1739379034457,-551.24665482,0.00011095,2]
[352861061,1739379034468,-500.0,0.00011095,2]
[352861063,1739379034478,-500.0,0.00011095,2]
[352861065,1739379034489,-500.0,0.00011095,2]
[352861067,1739379034499,-648.86,0.00011095,2]
[352861069,1739379034510,-500.0,0.00011095,2]
[352861071,1739379034521,-500.0,0.00011095,2]
[352861073,1739379034532,-500.0,0.00011095,2]
[352861075,1739379034542,-500.0,0.00011095,2]
[352861077,1739379034552,-500.0,0.00011095,2]
[352861079,1739379034563,-500.0,0.00011095,2]
[352861081,1739379034573,-500.0,0.00011095,2]
[352861083,1739379034583,-500.0,0.00011095,2]
[352861085,1739379034593,-500.0,0.00011095,2]
[352861087,1739379034605,-500.0,0.00011095,2]
[352861089,1739379034615,-500.0,0.00011095,2]
[352861091,1739379034624,-500.0,0.00011095,2]
[352861093,1739379034635,-500.0,0.00011095,2]
[352861095,1739379034645,-500.0,0.00011095,2]
[352861097,1739379034655,-500.0,0.00011095,2]
[352861099,1739379034666,-500.0,0.00011095,2]
[352861101,1739379034676,-1495.69,0.00011095,2]
[352861103,1739379034687,-500.0,0.00011095,2]
[352861105,1739379034697,-500.0,0.00011095,2]
[352861107,1739379034707,-500.0,0.00011095,2]
[352861109,1739379034717,-1120.11,0.00011095,2]
[352861111,1739379034727,-500.0,0.00011095,2]
[352861113,1739379034739,-500.0,0.00011095,2]
[352861115,1739379034748,-500.0,0.00011095,2]
[352861117,1739379034758,-500.0,0.00011095,2]
[352861119,1739379034768,-500.0,0.00011095,2]
[352861121,1739379034777,-500.0,0.00011095,2]
[352861123,1739379034787,-500.0,0.00011095,2]
[352861125,1739379034796,-991.67,0.00011095,2]
[352861127,1739379034806,-500.0,0.00011095,2]
[352861129,1739379034816,-500.0,0.00011095,2]
[352861131,1739379034825,-500.0,0.00011095,2]
[352861133,1739379034836,-500.0,0.00011095,2]
[352861135,1739379034846,-500.0,0.00011095,2]
[352861137,1739379034857,-500.0,0.00011095,2]
[352861139,1739379034866,-500.0,0.00011095,2]
[352861141,1739379034876,-500.0,0.00011095,2]
[352861143,1739379034886,-500.0,0.00011095,2]
[352861145,1739379034895,-576.62971255,0.00011095,2]
[352861147,1739379034905,-500.0,0.00011095,2]
[352861149,1739379034914,-500.0,0.00011095,2]
[352861151,1739379034923,-500.0,0.00011095,2]
[352861153,1739379034933,-500.0,0.00011095,2]
[352861155,1739379034941,-500.0,0.00011095,2]
[352861157,1739379034951,-500.0,0.00011095,2]
[352861159,1739379034960,-500.0,0.00011208,2]
[352861161,1739379034970,-500.0,0.00011232,2]
[352861163,1739379034980,-458.35517356,0.00011232,2]
[352861164,1739379034989,-347.03443856,0.00011232,2]
[352861166,1739379034999,-500.0,0.00011232,2]
[352861168,1739379035010,-500.0,0.00011232,2]
[352861170,1739379035021,-500.0,0.00011232,2]
[352861172,1739379035030,-500.0,0.00011232,2]
[352861174,1739379035039,-500.0,0.00011232,2]
[352861176,1739379035050,-502.32683464,0.00011232,2]
[352861178,1739379035059,-500.0,0.00011232,2]
[352861180,1739379035069,-175.03620436,0.00011232,2]
[352861182,1739379035079,-500.0,0.00011232,2]
[352861184,1739379035090,-500.0,0.00011232,2]
[352861186,1739379035100,-500.0,0.00011232,2]
[352861187,1739379035109,-500.0,0.00011232,2]
[352861188,1739379035118,-500.0,0.00011232,2]
[352861189,1739379035128,-500.0,0.00011232,2]
[352861190,1739379035137,-402.29,0.00011232,2]
[352861191,1739379035147,-500.0,0.00011232,2]
[352861192,1739379035156,-500.0,0.00011232,2]
[352861193,1739379035165,-500.0,0.00011232,2]
[352861194,1739379035175,-500.0,0.00011232,2]
[352861195,1739379035185,-500.0,0.00011232,2]
[352861196,1739379035194,-562.08,0.00011232,2]
[352861197,1739379035204,-641.74,0.00011232,2]
[352861198,1739379035213,-500.0,0.00011232,2]
[352861199,1739379035223,-500.0,0.00011232,2]
[352861201,1739379035232,-500.0,0.00011232,2]
[352861203,1739379035241,-500.0,0.00011232,2]
[352861216,1739379035356,-500.0,0.00011232,2]
[352861218,1739379035369,-648.86,0.00011232,2]
[352861220,1739379035379,-500.0,0.00011232,2]
[352861222,1739379035388,-500.0,0.00011232,2]
[352861224,1739379035398,-500.0,0.00011232,2]
[352861226,1739379035407,-500.0,0.00011232,2]
[352861228,1739379035417,-500.0,0.00011232,2]
[352861230,1739379035426,-500.0,0.00011232,2]
[352861232,1739379035436,-500.0,0.00011232,2]
[352861234,1739379035445,-1495.69,0.00011232,2]
[352861236,1739379035455,-500.0,0.00011232,2]
[352861238,1739379035464,-1120.11,0.00011232,2]
[352861240,1739379035473,-500.0,0.00011232,2]
[352861242,1739379035482,-500.0,0.00011232,2]
[352861244,1739379035491,-500.0,0.00011232,2]
[352861246,1739379035500,-500.0,0.00011232,2]
[352861247,1739379035510,-991.67,0.00011232,2]
[352861249,1739379035519,-500.0,0.00011232,2]
[352861251,1739379035529,-500.0,0.00011232,2]
[352861253,1739379035539,-500.0,0.00011232,2]
[352861255,1739379035548,-500.0,0.00011232,2]
[352861257,1739379035557,-500.0,0.00011232,2]
[352861259,1739379035567,-500.0,0.00011232,2]
[352861261,1739379035576,-500.0,0.00011232,2]
[352861263,1739379035585,-350.14180229,0.00011232,2]
[352861265,1739379035595,-500.0,0.00011232,2]
[352861267,1739379035605,-500.0,0.00011232,2]
[352861269,1739379035616,-180.44902155,0.00011368,2]
[352861271,1739379035625,-500.0,0.00011368,2]
[352861273,1739379035634,-308.33099795,0.00011368,2]
[352861275,1739379035645,-395.14250955,0.00011369,2]
[352861282,1739379035699,-315.25440493,0.00011368,2]
[352861284,1739379035712,-184.74559507,0.00011368,2]
[352861286,1739379035721,-500.0,0.00011368,2]
[352861288,1739379035731,-104.85749045,0.00011369,2]
[352861290,1739379035740,-500.0,0.00011369,2]
[352861292,1739379035749,-74.25691748,0.00011369,2]
[352861296,1739379035773,-500.0,0.00011368,2]
[352861298,1739379035782,-357.50040822,0.00011368,2]
[352861300,1739379035791,-425.74308252,0.00011369,2]
[352861301,1739379035801,-360.46765507,0.00011369,2]
[352861376,1739379038264,-500.0,0.00010958,2]
[352861377,1739379038274,-500.0,0.00010958,2]
[352861378,1739379038284,-500.0,0.00010958,2]
[352861379,1739379038293,-500.0,0.00010958,2]
[352861380,1739379038303,-500.0,0.00010958,2]
[352861381,1739379038312,-623.86,0.00010958,2]
[352861382,1739379038321,-500.0,0.00011095,2]
[352861383,1739379038331,-141.77717976,0.00011232,2]
[352861384,1739379038343,-358.22282024,0.00011232,2]
[352861385,1739379038353,-500.0,0.00011368,2]
[352861386,1739379038362,-500.0,0.00011368,2]
[352861387,1739379038371,-500.0,0.00011368,2]
[352861388,1739379038381,-248.68976899,0.00011369,2]
[352861389,1739379038390,-188.83899593,0.00011369,2]
[352861390,1739379038400,-162.08607547,0.00011369,2]
[352861391,1739379038409,-299.18293675,0.00011369,2]
[352861392,1739379038419,-500.0,0.00011369,2]
[352861393,1739379038428,-168.26092995,0.00011369,2]
[352861394,1739379038438,-500.0,0.00011369,2]
[352861395,1739379038446,-500.0,0.00011369,2]
[352861396,1739379038456,-500.0,0.00011369,2]
[352861397,1739379038465,-500.0,0.00011369,2]
[352861398,1739379038474,-648.86,0.00011369,2]
[352861399,1739379038484,-500.0,0.00011369,2]
[352861400,1739379038493,-500.0,0.00011369,2]
[352861401,1739379038503,-500.0,0.00011369,2]
[352861402,1739379038515,-500.0,0.00011369,2]
[352861403,1739379038525,-419.76,0.00011369,2]
[352861404,1739379038535,-500.0,0.00011369,2]
[352861405,1739379038548,-1495.69,0.00011369,2]
[352861406,1739379038567,-500.0,0.00011369,2]
[352861407,1739379038577,-1120.11,0.00011369,2]
[352861408,1739379038587,-500.0,0.00011369,2]
[352861409,1739379038596,-500.0,0.00011369,2]
[352861410,1739379038607,-500.0,0.00011369,2]
[352861411,1739379038616,-991.67,0.00011369,2]
[352861412,1739379038625,-500.0,0.00011369,2]
[352861413,1739379038635,-500.0,0.00011369,2]
[352861414,1739379038645,-500.0,0.00011369,2]
[352861415,1739379038654,-429.43630105,0.00011369,2]
[352861416,1739379038664,-500.0,0.00011369,2]
[352861417,1739379038673,-500.0,0.00011369,2]
[352861418,1739379038682,-500.0,0.00011369,2]
[352861419,1739379038692,-500.0,0.00011369,2]
[352861420,1739379038701,-309.25076243,0.000114,2]
[352861421,1739379038711,-500.0,0.00011506,2]
[352861422,1739379038720,-500.0,0.00011506,2]
[352861423,1739379038729,-500.0,0.00011506,2]
[352861424,1739379038738,-500.0,0.00011506,2]
[352861425,1739379038748,-648.86,0.00011506,2]
[352861426,1739379038758,-500.0,0.00011506,2]
[352861427,1739379038767,-500.0,0.00011506,2]
[352861428,1739379038776,-500.0,0.00011506,2]
[352861429,1739379038786,-1495.69,0.00011506,2]
[352861430,1739379038795,-500.0,0.00011506,2]
[352861431,1739379038805,-1120.11,0.00011506,2]
[352861432,1739379038814,-500.0,0.00011506,2]
[352861433,1739379038824,-410.05,0.00011506,2]
[352861434,1739379038833,-991.67,0.00011506,2]
[352861435,1739379038843,-500.0,0.00011506,2]
[352861436,1739379038854,-500.0,0.00011506,2]
[352861437,1739379038863,-500.0,0.00011506,2]
[352861439,1739379038873,-500.0,0.00011506,2]
[352861441,1739379038882,-500.0,0.00011506,2]
[352861443,1739379038891,-597.65748031,0.00011643,2]
[352861445,1739379038900,-500.0,0.00011643,2]
[352861447,1739379038910,-202.06,0.00011643,2]
[352861448,1739379038919,-159.49160907,0.00011643,2]
[352861449,1739379038929,-648.86,0.00011643,2]
[352861450,1739379038938,-500.0,0.00011643,2]
[352861451,1739379038947,-500.0,0.00011643,2]
[352861452,1739379038957,-500.0,0.00011643,2]
[352861453,1739379038967,-1495.69,0.00011643,2]
[352861454,1739379038976,-500.0,0.00011643,2]
[352861455,1739379038986,-1120.11,0.00011643,2]
[352861456,1739379038995,-500.0,0.00011643,2]
[352861457,1739379039006,-991.67,0.00011643,2]
[352861459,1739379039021,-500.0,0.00011643,2]
[352861461,1739379039029,-500.0,0.00011643,2]
[352861462,1739379039038,-570.57412291,0.00011643,2]
[352861464,1739379039049,-500.0,0.00011643,2]
[352861466,1739379039058,-1000.0,0.00011756,2]
[352861467,1739379039067,-500.0,0.0001178,2]
[352861469,1739379039076,-648.86,0.0001178,2]
[352861471,1739379039087,-500.0,0.0001178,2]
[352861472,1739379039097,-500.0,0.0001178,2]
[352861473,1739379039109,-500.0,0.0001178,2]
[352861475,1739379039119,-1495.69,0.0001178,2]
[352861476,1739379039129,-500.0,0.0001178,2]
[352861477,1739379039139,-1120.11,0.0001178,2]
[352861478,1739379039148,-524.47054155,0.0001178,2]
[352861479,1739379039158,-991.67,0.0001178,2]
[352861480,1739379039168,-367.08,0.0001178,2]
[352861481,1739379039177,-335.48901681,0.0001178,2]
[352861482,1739379039188,-500.0,0.000118,2]
[352861483,1739379039198,-500.0,0.00011917,2]
[352861484,1739379039207,-648.86,0.00011917,2]
[352861485,1739379039217,-500.0,0.00011917,2]
[352861486,1739379039226,-500.0,0.00011917,2]
[352861487,1739379039236,-500.0,0.00011917,2]
[352861488,1739379039245,-1495.69,0.00011917,2]
[352861489,1739379039255,-500.0,0.00011917,2]
[352861490,1739379039264,-1120.11,0.00011917,2]
[352861491,1739379039273,-991.67,0.00011917,2]
[352861492,1739379039282,-500.0,0.00012054,2]
[352861493,1739379039291,-648.86,0.00012054,2]
[352861494,1739379039302,-500.0,0.00012054,2]
[352861495,1739379039311,-500.0,0.00012054,2]
[352861496,1739379039320,-500.0,0.00012054,2]
[352861497,1739379039330,-1495.69,0.00012054,2]
[352861498,1739379039339,-500.0,0.00012054,2]
[352861499,1739379039349,-1120.11,0.00012054,2]
[352861500,1739379039366,-991.67,0.00012054,2]
[352861501,1739379039375,-500.0,0.00012191,2]
[352861502,1739379039385,-648.86,0.00012191,2]
[352861503,1739379039394,-500.0,0.00012191,2]
[352861504,1739379039404,-500.0,0.00012191,2]
[352861505,1739379039414,-500.0,0.00012191,2]
[352861506,1739379039423,-1495.69,0.00012191,2]
[352861507,1739379039433,-500.0,0.00012191,2]
[352861508,1739379039442,-1120.11,0.00012191,2]
[352861509,1739379039451,-991.67,0.00012191,2]
[352861510,1739379039460,-500.0,0.00012328,2]
[352861511,1739379039469,-648.86,0.00012328,2]
[352861512,1739379039479,-500.0,0.00012328,2]
[352861513,1739379039489,-500.0,0.00012328,2]
[352861514,1739379039499,-500.0,0.00012328,2]
[352861515,1739379039509,-1495.69,0.00012328,2]
[352861516,1739379039518,-500.0,0.00012328,2]
[352861517,1739379039528,-1120.11,0.00012328,2]
[352861518,1739379039538,-991.67,0.00012328,2]
[352861519,1739379039547,-500.0,0.00012465,2]
[352861520,1739379039557,-648.86,0.00012465,2]
[352861521,1739379039567,-500.0,0.00012465,2]
[352861522,1739379039576,-500.0,0.00012465,2]
[352861523,1739379039586,-500.0,0.00012465,2]
[352861524,1739379039597,-1495.69,0.00012465,2]
[352861525,1739379039611,-500.0,0.00012465,2]
[352861526,1739379039621,-1120.11,0.00012465,2]
[352861527,1739379039631,-991.67,0.00012465,2]
[352861528,1739379039640,-500.0,0.00012602,2]
[352861529,1739379039650,-648.86,0.00012602,2]
[352861530,1739379039660,-500.0,0.00012602,2]
[352861531,1739379039670,-500.0,0.00012602,2]
[352861532,1739379039680,-258.508167,0.00012602,2]
[352861533,1739379039690,-1495.69,0.00012602,2]
[352861534,1739379039699,-500.0,0.00012602,2]
[352861535,1739379039709,-1120.11,0.00012602,2]
[352861536,1739379039718,-991.67,0.00012602,2]
[352861537,1739379039727,-500.0,0.00012739,2]
[352861538,1739379039737,-648.86,0.00012739,2]
[352861539,1739379039746,-500.0,0.00012739,2]
[352861540,1739379039756,-500.0,0.00012739,2]
[352861541,1739379039766,-1495.69,0.00012739,2]
[352861542,1739379039776,-500.0,0.00012739,2]
[352861543,1739379039785,-1120.11,0.00012739,2]
[352861544,1739379039795,-991.67,0.00012739,2]
[352861545,1739379039805,-500.0,0.00012876,2]
[352861546,1739379039814,-648.86,0.00012876,2]
[352861547,1739379039824,-500.0,0.00012876,2]
[352861548,1739379039834,-500.0,0.00012876,2]
[352861549,1739379039844,-1495.69,0.00012876,2]
[352861550,1739379039859,-500.0,0.00012876,2]
[352861551,1739379039868,-1120.11,0.00012876,2]
[352861552,1739379039877,-991.67,0.00012876,2]
[352861554,1739379039887,-173.4249007,0.000129,2]
[352861555,1739379039896,-500.0,0.00013013,2]
[352861556,1739379039906,-648.86,0.00013013,2]
[352861557,1739379039916,-500.0,0.00013013,2]
[352861558,1739379039925,-500.0,0.00013013,2]
[352861559,1739379039935,-1495.69,0.00013013,2]
[352861560,1739379039944,-500.0,0.00013013,2]
[352861561,1739379039954,-1120.11,0.00013013,2]
[352861562,1739379039963,-991.67,0.00013013,2]
[352861563,1739379039973,-500.0,0.0001315,2]
[352861564,1739379039982,-648.86,0.0001315,2]
[352861565,1739379039992,-543.78953008,0.0001315,2]
[352861566,1739379040002,-500.0,0.0001315,2]
[352861567,1739379040014,-1495.69,0.0001315,2]
[352861568,1739379040024,-199.68096542,0.0001315,2]
[352861569,1739379040033,-1120.11,0.0001315,2]
[352861570,1739379040043,-991.67,0.0001315,2]
[352861571,1739379040052,-500.0,0.00013164,2]
[352861573,1739379040061,-500.0,0.00013287,2]
[352861575,1739379040071,-648.86,0.00013287,2]
[352861577,1739379040081,-500.0,0.00013287,2]
[352861578,1739379040092,-1495.69,0.00013287,2]
[352861579,1739379040106,-1120.11,0.00013287,2]
[352861580,1739379040115,-991.67,0.00013287,2]
[352861581,1739379040124,-500.0,0.00013424,2]
[352861582,1739379040134,-648.86,0.00013424,2]
[352861583,1739379040144,-500.0,0.00013424,2]
[352861584,1739379040154,-1495.69,0.00013424,2]
[352861585,1739379040163,-1120.11,0.00013424,2]
[352861586,1739379040172,-991.67,0.00013424,2]
[352861587,1739379040182,-500.0,0.00013561,2]
[352861591,1739379040296,-648.86,0.00013561,2]
[352861592,1739379040308,-500.0,0.00013561,2]
[352861593,1739379040319,-1495.69,0.00013561,2]
[352861594,1739379040329,-1120.11,0.00013561,2]
[352861595,1739379040339,-991.67,0.00013561,2]
[352861596,1739379040349,-319.12,0.00013698,2]
[352861597,1739379040364,-648.86,0.00013698,2]
[352861598,1739379040374,-500.0,0.00013698,2]
[352861599,1739379040384,-1495.69,0.00013698,2]
[352861600,1739379040393,-1120.11,0.00013698,2]
[352861601,1739379040402,-991.67,0.00013698,2]
[352861602,1739379040412,-2498.86,0.00013699,2]
[352861603,1739379040422,-2498.86,0.00013699,2]
[352861605,1739379040432,-2498.86,0.00013699,2]
[352861606,1739379040442,-2498.86,0.00013699,2]
[352861607,1739379040454,-2498.86,0.00013699,2]
[352861608,1739379040464,-2498.86,0.00013699,2]
[352861609,1739379040474,-2498.86,0.00013699,2]
[352861611,1739379040484,-2498.86,0.00013699,2]
[352861612,1739379040494,-2498.86,0.00013699,2]
[352861613,1739379040503,-2498.86,0.00013699,2]
[352861614,1739379040513,-2498.86,0.00013699,2]
[352861615,1739379040523,-2498.86,0.00013699,2]
[352861616,1739379040532,-2498.86,0.00013699,2]
[352861617,1739379040542,-2498.86,0.00013699,2]
[352861618,1739379040551,-2498.86,0.00013699,2]
[352861619,1739379040561,-2498.86,0.00013699,2]
[352861620,1739379040570,-2498.86,0.00013699,2]
[352861621,1739379040580,-2498.86,0.00013699,2]
[352861622,1739379040589,-2498.86,0.00013699,2]
[352861623,1739379040599,-2498.90117551,0.00013699,2]
[352861624,1739379040613,-648.86,0.00013835,2]
[352861625,1739379040622,-500.0,0.00013835,2]
[352861626,1739379040632,-1495.69,0.00013835,2]
[352861627,1739379040641,-1120.11,0.00013835,2]
[352861628,1739379040650,-991.67,0.00013835,2]
[352861629,1739379040659,-648.86,0.00013972,2]
[352861630,1739379040669,-383.69,0.00013972,2]
[352861631,1739379040679,-1495.69,0.00013972,2]
[352861632,1739379040689,-1120.11,0.00013972,2]
[352861633,1739379040699,-991.67,0.00013972,2]
[352861634,1739379040709,-12799.12902002,0.00013986,2]
[352861635,1739379040718,-12799.12902002,0.00013989,2]
[352861636,1739379040727,-12799.12902002,0.00013992,2]
[352861637,1739379040737,-153.097,0.00014051,2]
[352861638,1739379040746,-649.05359851,0.00014109,2]
[352861639,1739379040756,-1495.72226964,0.00014109,2]
[352861640,1739379040765,-1120.33,0.00014109,2]
[352861641,1739379040774,-991.83751808,0.00014109,2]
[352861642,1739379040784,-413.114,0.00014774,2]
[352861643,1739379040793,-2048.56,0.00015,2]
[352861644,1739379040802,-335.24,0.00015054,2]
[352861645,1739379040811,-151.0,0.00015506,2]
[352861646,1739379040820,-500.0,0.00015904,2]
[352861647,1739379040830,-732.23148353,0.00016,2]
[352861648,1739379040839,-578.96,0.00016164,2]
[352861649,1739379040848,-250.0,0.00016262,2]
[352861650,1739379040859,-204.58,0.00016262,2]
[352861651,1739379040869,-500.0,0.00016438,2]
[352861652,1739379040878,-500.0,0.00016438,2]
[352861653,1739379040887,-500.38495434,0.00016438,2]
[352861654,1739379040896,-884.58303594,0.000168,7]
[352861655,1739379040906,-2000.0,0.000168,2]
[352861656,1739379040915,-2000.0,0.000169,2]
[352861657,1739379040924,-173.42490069,0.00016983,2]
[352861658,1739379040934,-509.89253263,0.00016983,2]
[352861659,1739379040943,-500.0,0.00016986,3]
[352861660,1739379040961,-157.28,0.00017,31]
[352861661,1739379040972,-157.28,0.00017,31]
[352861662,1739379040981,-157.28,0.00017,31]
[352861663,1739379040992,-157.28,0.00017,31]
[352861664,1739379041003,-157.28,0.00017,31]
[352861665,1739379041012,-157.28,0.00017,31]
[352861666,1739379041024,-157.28,0.00017,31]
[352861667,1739379041033,-1000.0,0.00017,17]
[352861668,1739379041043,-3000.0,0.00017035,2]
[352861669,1739379041052,-500.0,0.0001704,2]
[352861670,1739379041063,-176.30481185,0.0001704,2]
[352861671,1739379041072,-500.0,0.0001704,2]
[352861672,1739379041083,-592.32676355,0.0001704,2]
[352861673,1739379041093,-354.9109976,0.00017041,2]
[352861674,1739379041104,-354.9109976,0.00017041,2]
[352861675,1739379041114,-354.9109976,0.00017041,2]
[352861676,1739379041123,-2571.49997113,0.00017061,2]
[352861677,1739379041132,-500.0,0.0001707,2]
[352861678,1739379041141,-287.658028,0.00017083,2]
[352861679,1739379041150,-151.0,0.00017083,2]
[352861680,1739379041159,-153.847106,0.00017083,2]
[352861681,1739379041168,-151.0,0.00017083,2]
[352861682,1739379041178,-151.0,0.00017083,2]
[352861683,1739379041189,-151.0,0.00017083,2]
[352861684,1739379041199,-151.0,0.00017083,2]
[352861685,1739379041208,-151.0,0.00017083,2]
[352861686,1739379041218,-151.0,0.00017083,2]
[352861687,1739379041228,-228.916618,0.00017083,2]
[352861688,1739379041237,-151.0,0.00017083,2]
[352861689,1739379041247,-162.663122,0.00017083,2]
[352861690,1739379041257,-153.371361,0.00017083,2]
[352861691,1739379041266,-10485.50999649,0.00017083,5]
[352861692,1739379041275,-13.97526138,0.00017083,5]
[352861693,1739379041375,-154.18735432,0.00017083,5]
[352861694,1739379041385,-98783.32047159,0.00017083,32]
[352861707,1739379043329,-502.27895175,0.00010958,2]
[352861708,1739379043339,-623.86,0.00011095,2]
[352861709,1739379043348,-209.5278184,0.00011232,2]
[352861710,1739379043362,-253.94316365,0.00011232,2]
[352861711,1739379043373,-160.38901795,0.00011232,2]
[352861712,1739379043383,-623.86,0.00011369,2]
[352861713,1739379043392,-623.86,0.00011506,2]
[352861714,1739379043401,-623.86,0.00011643,2]
[352861715,1739379043411,-623.86,0.0001178,2]
[352861716,1739379043420,-623.86,0.00011917,2]
[352861717,1739379043430,-623.86,0.00012054,2]
[352861718,1739379043439,-623.86,0.00012191,2]
[352861719,1739379043449,-623.86,0.00012328,2]
[352861720,1739379043458,-623.86,0.00012465,2]
[352861721,1739379043468,-623.86,0.00012602,2]
[352861722,1739379043477,-623.86,0.00012739,2]
[352861723,1739379043487,-623.86,0.00012876,2]
[352861724,1739379043498,-623.86,0.00013013,2]
[352861725,1739379043508,-623.86,0.0001315,2]
[352861726,1739379043517,-623.86,0.00013287,2]
[352861727,1739379043526,-202882.68803148,0.00017083,32]
[352861728,1739379043536,-19962.22333077,0.00017083,32]
[352861733,1739379046434,-623.86,0.00013424,2]
[352861734,1739379046444,-623.86,0.00013561,2]
[352861735,1739379046454,-623.86,0.00013698,2]
[352861736,1739379046464,-623.86,0.00013835,2]
[352861737,1739379046474,-623.86,0.00013972,2]
[352861738,1739379046483,-623.9616421,0.00014109,2]
[352861739,1739379046493,-354.9109976,0.00017041,2]
[352861740,1739379046503,-151.12,0.00017083,2]
[352861741,1739379046513,-55291.77666923,0.00017083,32]
[352861742,1739379046524,-233.69315088,0.00017083,10]
[352861743,1739379046533,-200.0,0.00017083,10]
[352861744,1739379046542,-1380.85513866,0.00017083,2]
[352861745,1739379046552,-299.71678612,0.00017083,2]
[352861746,1739379046561,-10175.14757167,0.00017083,2]
[352861747,1739379046571,-6214.71897257,0.00017083,2]
[352861748,1739379046581,-155.59107563,0.00017083,2]
[352861749,1739379046590,-1408.28288743,0.00017083,2]
[352861750,1739379107758,220.0,8.842e-05,2]
[352861753,1739380031209,-504.49056755,0.0001,2]
[352861754,1739380031232,-141.85765665,0.0001014,2]
[352861755,1739380051143,-108.14234335,0.0001014,2]
[352861756,1739380051167,-18257.1663472,0.00010144,2]
[352861757,1739380051191,-400.0,0.00010685,2]
[352861758,1739380051221,-7438.69753278,0.0001095,2]
[352861759,1739380051246,-500.0,0.00010958,2]
[352861760,1739380051270,-172.52968879,0.00010958,2]
[352861761,1739380051295,-500.0,0.00010958,2]
[352861762,1739380051317,-500.68007725,0.00010958,2]
[352861763,1739380051340,-500.0,0.00010958,2]
[352861764,1739380051364,-627.64163419,0.00010958,2]
[352861765,1739380051398,-384.31256995,0.00010958,2]
[352861766,1739380051420,-500.0,0.00010958,2]
[352861767,1739380051441,-500.0,0.00010958,2]
[352861768,1739380051472,-500.0,0.00010958,2]
[352861769,1739380051508,-575.99855087,0.00010958,2]
[352861770,1739380051535,-500.0,0.00010958,2]
[352861771,1739380051558,-273.38592195,0.00010958,2]